bitfinex/quotes_BTCUSD_20250830
["timestamp","ask_amount","ask_price","bid_price","bid_amount"]
[1756588015432,0.52390804,108750.0,108740.0,0.0002]
[1756588015651,0.52390804,108750.0,108740.0,0.00024761]
[1756588015652,4.17193076,108750.0,108740.0,0.00024761]
[1756588015868,4.14795095,108750.0,108740.0,0.00024761]
[1756588016081,4.14838095,108750.0,108740.0,0.00024761]
[1756588016491,4.17303285,108750.0,108740.0,0.00024761]
[1756588016726,4.14938095,108750.0,108740.0,0.00024761]
[1756588017148,4.18002238,108750.0,108740.0,0.00024761]
[1756588017569,4.20513791,108750.0,108740.0,0.00024761]
[1756588018173,4.21953501,108750.0,108740.0,0.00024761]
[1756588018600,4.18664193,108750.0,108740.0,0.00024761]
[1756588020478,4.18661367,108750.0,108740.0,0.00024761]
[1756588020695,4.03149108,108750.0,108740.0,0.00024761]
[1756588020916,4.17638847,108750.0,108740.0,0.00525761]
[1756588021559,4.20405103,108750.0,108740.0,0.00525761]
[1756588022713,4.20401103,108750.0,108740.0,0.00525761]
[1756588022925,3.68216164,108750.0,108740.0,0.00525761]
[1756588023128,3.31754817,108750.0,108740.0,0.00525761]
[1756588023341,3.45771107,108750.0,108740.0,0.18918256]
[1756588023985,3.45771107,108750.0,108740.0,0.00525761]
[1756588024193,3.45770936,108750.0,108740.0,0.00525761]
[1756588024388,3.11924132,108750.0,108740.0,0.18918256]
[1756588024598,0.93968874,108750.0,108740.0,0.18918256]
[1756588025462,0.91202574,108750.0,108740.0,0.18918256]
[1756588025823,0.56636517,108750.0,108740.0,0.18918256]
[1756588026981,0.91202574,108750.0,108740.0,0.18918256]
[1756588027397,0.20816636,108750.0,108740.0,0.53484313]
[1756588027609,0.20816636,108750.0,108740.0,0.78242314]
[1756588028907,0.20716636,108750.0,108740.0,0.78442314]
[1756588029327,0.20716636,108750.0,108740.0,0.78642314]
[1756588029541,0.20716636,108750.0,108740.0,0.78242314]
[1756588029890,0.20716636,108750.0,108740.0,0.79042314]
[1756588030105,0.20718769,108750.0,108740.0,0.79042314]
[1756588030696,0.207188,108750.0,108740.0,0.79042314]
[1756588030890,0.20718882,108750.0,108740.0,0.79042314]
[1756588033047,0.19007695,108750.0,108740.0,0.79042314]
[1756588036593,0.19007695,108750.0,108740.0,0.44476257]
[1756588036788,0.19007695,108750.0,108740.0,0.79042314]
[1756588036997,0.19007941,108750.0,108740.0,0.79042314]
[1756588037204,0.19007941,108750.0,108740.0,0.82750523]
[1756588037404,0.19007941,108750.0,108740.0,0.79042314]
[1756588038802,0.19007941,108750.0,108740.0,0.79022314]
[1756588040070,0.19007941,108750.0,108740.0,1.47588371]
[1756588040282,0.18366,108750.0,108740.0,1.47588371]
[1756588040517,0.18366,108750.0,108740.0,1.13022314]
[1756588040707,0.18366,108750.0,108740.0,1.16787768]
[1756588042034,0.0721143,108780.0,108770.0,0.18387423]
[1756588042035,0.0088554,108780.0,108770.0,0.18387423]
[1756588042261,0.0152769,108780.0,108770.0,0.34330423]
[1756588043228,0.0064215,108780.0,108770.0,0.34330423]
[1756588043426,0.0064215,108780.0,108770.0,0.34430423]
[1756588044354,0.50002057,108790.0,108780.0,0.18385732]
[1756588044559,0.50712579,108790.0,108780.0,0.18385732]
[1756588045654,0.50812579,108790.0,108780.0,0.18390493]
[1756588045915,0.50812579,108790.0,108780.0,0.33901493]
[1756588046128,0.50812579,108790.0,108780.0,0.18390493]
[1756588046471,0.50804579,108790.0,108780.0,0.18390493]
[1756588047150,0.69184621,108790.0,108780.0,0.33814493]
[1756588047350,0.69084621,108790.0,108780.0,0.33814493]
[1756588047567,0.69184621,108790.0,108780.0,0.33814493]
[1756588047957,0.69084621,108790.0,108780.0,0.33814493]
[1756588048176,0.69084621,108790.0,108780.0,0.34014493]
[1756588048416,0.69084621,108790.0,108780.0,0.34214493]
[1756588050826,0.50700579,108790.0,108780.0,0.34214493]
[1756588051140,0.50700579,108790.0,108780.0,0.18790493]
[1756588051340,0.50700579,108790.0,108780.0,0.34210493]
[1756588051494,0.50700995,108790.0,108780.0,0.34210493]
[1756588053366,0.52415074,108790.0,108780.0,0.34517493]
[1756588055111,0.52415074,108790.0,108780.0,0.19097493]
[1756588055308,0.17780017,108790.0,108780.0,0.34709493]
[1756588055522,0.00641938,108790.0,108780.0,0.34709493]
[1756588055720,0.35207995,108790.0,108780.0,0.34709493]
[1756588056351,0.3692439,108790.0,108780.0,0.34709493]
[1756588056565,0.35207995,108790.0,108780.0,0.34709493]
[1756588057352,0.36925627,108790.0,108780.0,0.34709493]
[1756588057750,0.0235957,108790.0,108780.0,0.34709493]
[1756588057990,0.36925627,108790.0,108780.0,0.34709493]
[1756588058812,0.36994627,108790.0,108780.0,0.34709493]
[1756588061813,0.36925627,108790.0,108780.0,0.34709493]
[1756588062249,0.36928249,108790.0,108780.0,0.34709493]
[1756588062676,0.02362192,108790.0,108780.0,0.49709493]
[1756588062852,0.00644234,108790.0,108780.0,0.34709493]
[1756588064850,0.00644234,108790.0,108780.0,0.33709493]
[1756588070610,0.02363186,108790.0,108780.0,0.33709493]
[1756588071385,0.36929243,108790.0,108780.0,0.33709493]
[1756588071828,0.36998243,108790.0,108780.0,0.33681493]
[1756588071995,0.36929243,108790.0,108780.0,0.33681493]
[1756588072199,0.02363186,108790.0,108780.0,0.33681493]
[1756588072429,0.36929243,108790.0,108780.0,0.33681493]
[1756588072795,0.35210732,108790.0,108780.0,0.33681493]
[1756588072998,0.36929865,108790.0,108780.0,0.33681493]
[1756588073222,0.15560971,108790.0,108780.0,0.33681493]
[1756588073427,0.15560954,108790.0,108780.0,0.33681493]
[1756588073628,0.02363791,108790.0,108780.0,0.33681493]
[1756588073830,0.36929848,108790.0,108780.0,0.33681493]
[1756588076470,0.02363791,108790.0,108780.0,0.33681493]
[1756588076699,0.36929848,108790.0,108780.0,0.33681493]
[1756588079218,0.35210732,108790.0,108780.0,0.33681493]
[1756588080309,0.00644675,108790.0,108780.0,0.33681493]
[1756588082405,0.72764255,108800.0,108790.0,0.18384042]
[1756588082605,0.74552873,108800.0,108790.0,0.18384042]
[1756588082808,0.39986816,108800.0,108790.0,0.18384042]
[1756588083048,0.74552873,108800.0,108790.0,0.18384042]
[1756588083250,0.74552873,108800.0,108790.0,0.33748042]
[1756588084096,0.74552873,108800.0,108790.0,0.33848042]
[1756588086579,0.21604411,108800.0,108790.0,0.34152042]
[1756588086789,0.56170468,108800.0,108790.0,0.34152042]
[1756588087007,0.40794468,108800.0,108790.0,0.34152042]
[1756588087870,0.5917682,108800.0,108790.0,0.34152042]
[1756588093114,0.5917902,108800.0,108790.0,0.34152042]
[1756588093335,0.5917902,108800.0,108790.0,0.18484042]
[1756588093505,0.5917902,108800.0,108790.0,0.34140042]
[1756588094126,0.62243163,108800.0,108790.0,0.34140042]
[1756588095895,0.5917902,108800.0,108790.0,0.34140042]
[1756588096607,0.62243163,108800.0,108790.0,0.34140042]
[1756588097014,0.62243163,108800.0,108790.0,0.34344042]
[1756588098081,0.24612963,108800.0,108790.0,0.34344042]
[1756588098309,0.5917902,108800.0,108790.0,0.34344042]
[1756588101455,0.93738633,108800.0,108790.0,0.34344042]
[1756588103577,0.72989624,108800.0,108790.0,0.34344042]
[1756588103750,0.75356516,108800.0,108790.0,0.34344042]
[1756588104251,0.93738868,108800.0,108790.0,0.34344042]
[1756588105682,0.93738868,108800.0,108790.0,0.33344042]
[1756588109983,1.09078868,108800.0,108790.0,0.33344042]
[1756588113704,0.90688516,108800.0,108790.0,0.33344042]
[1756588114241,0.8896714,108800.0,108790.0,0.33344042]
[1756588114446,0.90688542,108800.0,108790.0,0.33344042]
[1756588115241,0.90688541,108800.0,108790.0,0.33344042]
[1756588119193,1.09070893,108800.0,108790.0,0.33344042]
[1756588120555,0.90688541,108800.0,108790.0,0.33344042]
[1756588121964,1.09070893,108800.0,108790.0,0.33112042]
[1756588122410,1.09070893,108800.0,108790.0,0.33310042]
[1756588125062,1.09070246,108800.0,108790.0,0.33310042]
[1756588125953,1.09070162,108800.0,108790.0,0.33310042]
[1756588127172,0.7528681,108800.0,108790.0,0.33310042]
[1756588127512,0.93669162,108800.0,108790.0,0.33310042]
[1756588129135,1.08997162,108800.0,108790.0,0.33310042]
[1756588131954,0.9061481,108800.0,108790.0,0.33310042]
[1756588132154,0.90614845,108800.0,108790.0,0.33310042]
[1756588132470,1.08997197,108800.0,108790.0,0.33310042]
[1756588135735,1.07276349,108800.0,108790.0,0.33310042]
[1756588135949,1.08997345,108800.0,108790.0,0.33310042]
[1756588136320,1.08997347,108800.0,108790.0,0.33310042]
[1756588141624,1.08351972,108800.0,108790.0,0.33310042]
[1756588141957,1.08997345,108800.0,108790.0,0.33310042]
[1756588142171,1.09066345,108800.0,108790.0,0.33310042]
[1756588145196,1.07345349,108800.0,108790.0,0.33310042]
[1756588145396,1.09066354,108800.0,108790.0,0.33310042]
[1756588145774,1.09066452,108800.0,108790.0,0.33310042]
[1756588145984,1.11830952,108800.0,108790.0,0.36074542]
[1756588151932,1.09066452,108800.0,108790.0,0.36074542]
[1756588152629,0.0616143,108800.0,108790.0,0.36074542]
[1756588153133,0.752871,108800.0,108790.0,0.36074542]
[1756588155900,0.73566102,108800.0,108790.0,0.36074542]
[1756588156095,0.75287351,108800.0,108790.0,0.36074542]
[1756588156502,0.75287345,108800.0,108790.0,0.36074542]
[1756588160691,0.90607345,108800.0,108790.0,0.36074542]
[1756588166674,0.90607324,108800.0,108790.0,0.36074542]
[1756588170346,0.90607279,108800.0,108790.0,0.36074542]
[1756588171658,1.08989631,108800.0,108790.0,0.36074542]
[1756588171853,1.09058631,108800.0,108790.0,0.36074542]
[1756588173755,1.0905862,108800.0,108790.0,0.36074542]
[1756588177305,1.08413172,108800.0,108790.0,0.36074542]
[1756588177505,1.09058634,108800.0,108790.0,0.36074542]
[1756588182330,1.09058634,108800.0,108790.0,0.35876542]
[1756588182547,1.12122777,108800.0,108790.0,0.36068542]
[1756588184098,1.12122822,108800.0,108790.0,0.36068542]
[1756588184614,1.14887322,108800.0,108790.0,0.36068542]
[1756588188266,1.14887228,108800.0,108790.0,0.36068542]
[1756588188965,1.14887224,108800.0,108790.0,0.36068542]
[1756588189188,1.14887222,108800.0,108790.0,0.36068542]
[1756588190379,1.11092268,108800.0,108790.0,0.36068542]
[1756588191509,1.13772954,108800.0,108790.0,0.36068542]
[1756588192476,0.95388811,108800.0,108790.0,0.36068542]
[1756588197528,0.94743376,108800.0,108790.0,0.36068542]
[1756588197785,0.953888,108800.0,108790.0,0.36068542]
[1756588198768,0.953888,108800.0,108790.0,0.36082542]
[1756588198919,0.93667752,108800.0,108790.0,0.36082542]
[1756588199128,0.95389203,108800.0,108790.0,0.36082542]
[1756588201615,0.95389288,108800.0,108790.0,0.36082542]
[1756588203268,0.95389288,108800.0,108790.0,0.37082542]
[1756588208568,0.95389351,108800.0,108790.0,0.37082542]
[1756588209188,1.10705351,108800.0,108790.0,0.37082542]
[1756588211188,0.95389351,108800.0,108790.0,0.37082542]
[1756588211617,0.95389351,108800.0,108790.0,0.34318042]
[1756588219251,0.95389141,108800.0,108790.0,0.34318042]
[1756588222917,0.95320141,108800.0,108790.0,0.34318042]
[1756588224015,0.76937789,108800.0,108790.0,0.34318042]
[1756588224218,0.26263471,108800.0,108790.0,0.34318042]
[1756588224418,0.95389141,108800.0,108790.0,0.34318042]
[1756588225284,0.26263471,108800.0,108790.0,0.34318042]
[1756588225488,0.95389141,108800.0,108790.0,0.19002042]
[1756588225724,0.95389141,108800.0,108790.0,0.33796042]
[1756588226436,0.95389141,108800.0,108790.0,0.34103042]
[1756588229824,0.95389109,108800.0,108790.0,0.34103042]
[1756588230036,0.95389025,108800.0,108790.0,0.34315042]
[1756588233377,0.93667703,108800.0,108790.0,0.34315042]
[1756588233609,0.95389027,108800.0,108790.0,0.34315042]
[1756588237826,0.95389027,108800.0,108790.0,0.37079442]
[1756588240404,0.93022208,108800.0,108790.0,0.37079442]
[1756588240564,0.95389021,108800.0,108790.0,0.37079442]
[1756588241385,0.9538875,108800.0,108790.0,0.37079442]
[1756588248639,1.1069675,108800.0,108790.0,0.37079442]
[1756588249925,1.1069675,108800.0,108790.0,0.37075442]
[1756588251226,1.10696588,108800.0,108790.0,0.37075442]
[1756588251471,1.10696428,108800.0,108790.0,0.37075442]
[1756588252486,0.8686889,108800.0,108790.0,0.37075442]
[1756588252690,1.05251242,108800.0,108790.0,0.37075442]
[1756588254805,1.08977465,108800.0,108790.0,0.37075442]
[1756588261425,1.0897753,108800.0,108790.0,0.37075442]
[1756588261827,0.9366953,108800.0,108790.0,0.37075442]
[1756588262400,0.9366953,108800.0,108790.0,0.21767442]
[1756588262621,1.0897753,108800.0,108790.0,0.21767442]
[1756588262831,1.0897753,108800.0,108790.0,0.37075442]
[1756588264761,0.9366953,108800.0,108790.0,0.37075442]
[1756588265118,1.0897753,108800.0,108790.0,0.37075442]
[1756588267055,0.9366953,108800.0,108790.0,0.37075442]
[1756588268153,0.2447486,108800.0,108790.0,0.37075442]
[1756588268305,0.9360053,108800.0,108790.0,0.37075442]
[1756588268730,0.2447486,108800.0,108790.0,0.37075442]
[1756588268936,0.9360053,108800.0,108790.0,0.37075442]
[1756588271624,0.93600529,108800.0,108790.0,0.37075442]
[1756588274136,0.75218177,108800.0,108790.0,0.37075442]
[1756588276492,0.06092507,108800.0,108790.0,0.37075442]
[1756588276738,0.75218177,108800.0,108790.0,0.37075442]
[1756588276949,0.06092507,108800.0,108790.0,0.37075442]
[1756588277114,0.75218177,108800.0,108790.0,0.37075442]
[1756588278664,0.75218134,108800.0,108790.0,0.37075442]
[1756588282171,0.75217936,108800.0,108790.0,0.37075442]
[1756588282764,0.74572652,108800.0,108790.0,0.37075442]
[1756588282987,0.75217933,108800.0,108790.0,0.37075442]
[1756588285676,0.78282048,108800.0,108790.0,0.37075442]
[1756588292650,0.78282144,108800.0,108790.0,0.37075442]
[1756588292873,0.7828242,108800.0,108790.0,0.37075442]
[1756588293719,0.7828242,108800.0,108790.0,0.37071442]
[1756588295276,0.78282424,108800.0,108790.0,0.37071442]
[1756588303465,0.76561487,108800.0,108790.0,0.37071442]
[1756588303679,0.78282689,108800.0,108790.0,0.37071442]
[1756588303881,0.96734041,108800.0,108790.0,0.37067442]
[1756588304383,0.96665041,108800.0,108790.0,0.37067442]
[1756588304606,0.96734041,108800.0,108790.0,0.37067442]
[1756588304833,0.96665041,108800.0,108790.0,0.37067442]
[1756588314026,0.9494382,108800.0,108790.0,0.37067442]
[1756588314255,0.96664973,108800.0,108790.0,0.37067442]
[1756588323571,0.96664919,108800.0,108790.0,0.37067442]
[1756588323808,0.96664776,108800.0,108790.0,0.37067442]
[1756588324651,0.96664771,108800.0,108790.0,0.37067442]
[1756588326813,0.09156749,108800.0,108790.0,0.37067442]
[1756588327001,0.78282419,108800.0,108790.0,0.37067442]
[1756588327407,0.96664787,108800.0,108790.0,0.37067442]
[1756588327788,0.78282435,108800.0,108790.0,0.37067442]
[1756588329450,0.09156765,108800.0,108790.0,0.37067442]
[1756588329863,0.78282435,108800.0,108790.0,0.37067442]
[1756588330907,0.09156765,108800.0,108790.0,0.37067442]
[1756588331117,0.02366399,108800.0,108790.0,0.71630277]
[1756588331332,0.69156944,108820.0,108810.0,0.18380663]
[1756588331544,0.73473007,108820.0,108810.0,0.33676663]
[1756588331748,0.73473007,108820.0,108810.0,0.34207663]
[1756588331954,0.73473007,108820.0,108810.0,0.36971763]
[1756588332372,0.89870128,108820.0,108810.0,0.36971763]
[1756588332575,0.71591154,108820.0,108810.0,0.36971763]
[1756588333210,0.02365484,108820.0,108810.0,0.36971763]
[1756588333429,0.89970128,108820.0,108810.0,0.36971763]
[1756588333572,0.93861176,108820.0,108810.0,0.36971763]
[1756588333992,0.93661176,108820.0,108810.0,0.36971763]
[1756588334194,0.91295692,108820.0,108810.0,0.37171763]
[1756588334434,0.93015131,108820.0,108810.0,0.37171763]
[1756588334660,0.9365992,108820.0,108810.0,0.37171763]
[1756588334862,0.9355992,108820.0,108810.0,0.37171763]
[1756588335470,0.9355992,108820.0,108810.0,0.37371763]
[1756588336240,0.75180946,108820.0,108810.0,0.37371763]
[1756588336620,0.40618111,108820.0,108810.0,0.37371763]
[1756588337024,0.06055276,108820.0,108810.0,0.52371763]
[1756588337174,0.40618111,108820.0,108810.0,0.37371763]
[1756588337375,0.40618111,108820.0,108810.0,0.52371763]
[1756588337578,0.40618111,108820.0,108810.0,0.37371763]
[1756588337802,0.75180946,108820.0,108810.0,0.37371763]
[1756588338001,0.7517949,108820.0,108810.0,0.52371763]
[1756588338209,0.7517949,108820.0,108810.0,0.37371763]
[1756588338748,0.7517949,108820.0,108810.0,0.52371763]
[1756588339094,0.7517949,108820.0,108810.0,0.37371763]
[1756588339654,0.7517949,108820.0,108810.0,0.52371763]
[1756588339828,0.7517949,108820.0,108810.0,0.37371763]
[1756588340038,0.7517949,108820.0,108810.0,0.52371763]
[1756588340444,0.7517949,108820.0,108810.0,0.37371763]
[1756588341587,0.40615687,108820.0,108810.0,0.37371763]
[1756588342611,0.75178522,108820.0,108810.0,0.37371763]
[1756588343845,0.36280247,108820.0,108810.0,0.37371763]
[1756588345088,0.70843082,108820.0,108810.0,0.37371763]
[1756588345318,0.70842752,108820.0,108810.0,0.37371763]
[1756588345452,0.70842752,108820.0,108810.0,0.36571763]
[1756588346039,0.89290675,108820.0,108810.0,0.36571763]
[1756588346271,0.89221675,108820.0,108810.0,0.36571763]
[1756588347432,0.92885293,108820.0,108810.0,0.36571763]
[1756588351124,0.74506319,108820.0,108810.0,0.36571763]
[1756588353232,0.74575319,108820.0,108810.0,0.36571763]
[1756588354537,0.74506319,108820.0,108810.0,0.36571763]
[1756588355932,0.7515142,108820.0,108810.0,0.36571763]
[1756588356364,0.75151523,108820.0,108810.0,0.36571763]
[1756588359227,0.06025853,108820.0,108810.0,0.36571763]
[1756588359395,0.40590284,108820.0,108810.0,0.36571763]
[1756588359609,0.74590284,108820.0,108810.0,0.36571763]
[1756588363608,1.09222119,108820.0,108810.0,0.36036763]
[1756588364334,1.09222119,108820.0,108810.0,0.36345763]
[1756588366109,1.09222119,108820.0,108810.0,0.36559763]
[1756588366460,1.06858304,108820.0,108810.0,0.36559763]
[1756588366659,1.09225211,108820.0,108810.0,0.36559763]
[1756588367285,1.05561577,108820.0,108810.0,0.36559763]
[1756588368531,1.09354538,108820.0,108810.0,0.36559763]
[1756588369943,1.12118538,108820.0,108810.0,0.36559763]
[1756588371514,1.12118538,108820.0,108810.0,0.36059763]
[1756588372592,1.12118616,108820.0,108810.0,0.36059763]
[1756588374871,1.3049759,108820.0,108810.0,0.36059763]
[1756588377434,1.30497817,108820.0,108810.0,0.36059763]
[1756588378931,1.30497817,108820.0,108810.0,0.20767763]
[1756588379132,1.30497817,108820.0,108810.0,0.36055763]
[1756588379357,1.30497817,108820.0,108810.0,0.20767763]
[1756588379553,1.30497817,108820.0,108810.0,0.36055763]
[1756588383121,0.61372147,108820.0,108810.0,0.36055763]
[1756588383365,1.30497817,108820.0,108810.0,0.36055763]
[1756588385739,1.30497817,108820.0,108810.0,0.20767763]
[1756588385948,1.30497817,108820.0,108810.0,0.36055763]
[1756588386135,1.27733817,108820.0,108810.0,0.36055763]
[1756588386593,1.25366605,108820.0,108810.0,0.33291663]
[1756588386790,1.27733984,108820.0,108810.0,0.33291663]
[1756588392279,0.58608314,108820.0,108810.0,0.33291663]
[1756588392474,1.27733984,108820.0,108810.0,0.33291663]
[1756588397298,1.25366605,108820.0,108810.0,0.33291663]
[1756588397518,1.27734098,108820.0,108810.0,0.33291663]
[1756588400235,0.58539428,108820.0,108810.0,0.33291663]
[1756588400408,1.27665098,108820.0,108810.0,0.33291663]
[1756588408140,1.27664894,108820.0,108810.0,0.33291663]
[1756588408973,1.27664886,108820.0,108810.0,0.33291663]
[1756588418058,0.58539216,108820.0,108810.0,0.33291663]
[1756588418278,1.27664886,108820.0,108810.0,0.33291663]
[1756588418634,1.27663736,108820.0,108810.0,0.33291663]
[1756588425294,1.27732736,108820.0,108810.0,0.00923]
[1756588425474,4.3343563,108820.0,108810.0,0.004]
[1756588425621,4.3953748,108820.0,108810.0,0.004]
[1756588426137,4.35744519,108820.0,108810.0,0.004]
[1756588426832,4.01181684,108820.0,108810.0,0.004]
[1756588428006,3.32056014,108820.0,108810.0,0.004]
[1756588428217,4.01138684,108820.0,108810.0,0.004]
[1756588429397,4.01135728,108820.0,108810.0,0.004]
[1756588430891,4.04848599,108820.0,108810.0,0.004]
[1756588432968,3.70848599,108820.0,108810.0,0.004]
[1756588433745,3.01722929,108820.0,108810.0,0.004]
[1756588433944,3.70848599,108820.0,108810.0,0.004]
[1756588434908,4.04848599,108820.0,108810.0,0.004]
[1756588437174,4.02866299,108820.0,108810.0,0.004]
[1756588438816,3.99153428,108820.0,108810.0,0.004]
[1756588440000,3.99151507,108820.0,108810.0,0.004]
[1756588440213,3.2866643,108820.0,108810.0,0.00722]
[1756588440449,3.08445431,108820.0,108810.0,0.00937]
[1756588440867,3.77571101,108820.0,108810.0,0.00937]
[1756588441860,3.12269028,108820.0,108810.0,0.00937]
[1756588442061,3.81394698,108820.0,108810.0,0.00937]
[1756588443318,3.83373136,108820.0,108810.0,0.00937]
[1756588443556,3.14247466,108820.0,108810.0,0.00937]
[1756588443765,3.83373136,108820.0,108810.0,0.00937]
[1756588443964,3.14247466,108820.0,108810.0,0.02868935]
[1756588444184,1.30453698,108820.0,108810.0,0.00937]
[1756588444413,0.61328028,108820.0,108810.0,0.00937]
[1756588444619,0.61328028,108820.0,108810.0,0.01166758]
[1756588444825,0.95890863,108820.0,108810.0,0.00937]
[1756588445237,0.06184854,108820.0,108810.0,0.34831421]
[1756588445478,0.06184854,108820.0,108810.0,0.34601663]
[1756588445689,0.74748194,108820.0,108810.0,0.37365463]
[1756588445908,0.02361762,108820.0,108810.0,0.44437463]
[1756588446113,0.01717784,108820.0,108810.0,0.79000298]
[1756588446329,0.01717784,108820.0,108810.0,0.88298299]
[1756588446330,0.35717784,108820.0,108810.0,0.88298299]
[1756588446533,0.34,108820.0,108810.0,0.88298299]
[1756588447603,0.68562835,108830.0,108820.0,0.18378974]
[1756588447812,0.70923955,108830.0,108820.0,0.18915974]
[1756588448041,0.70280013,108830.0,108820.0,0.34195974]
[1756588448670,0.7406362,108830.0,108820.0,0.34195974]
[1756588448884,0.75549587,108830.0,108820.0,0.34295974]
[1756588449299,0.75549224,108830.0,108820.0,0.34295974]
[1756588449489,0.75549224,108830.0,108820.0,0.34395974]
[1756588449710,0.40986389,108830.0,108820.0,0.34395974]
[1756588449920,0.75549224,108830.0,108820.0,0.34395974]
[1756588450127,0.75548872,108830.0,108820.0,0.34395974]
[1756588450328,0.0320243,108830.0,108820.0,0.34395974]
[1756588450568,0.37765265,108830.0,108820.0,0.34395974]
[1756588450764,0.01485967,108830.0,108820.0,0.19115974]
[1756588450968,0.01485967,108830.0,108820.0,0.7825681]
[1756588451617,0.00047656,108830.0,108820.0,0.7825681]
[1756588452300,0.00047656,108830.0,108820.0,0.7815681]
[1756588452517,0.00047656,108830.0,108820.0,0.7805681]
[1756588452733,0.00047656,108830.0,108820.0,1.12719645]
[1756588452971,0.00047656,108830.0,108820.0,0.43593975]
[1756588453234,0.00047656,108830.0,108820.0,1.12619645]
[1756588453448,0.00047656,108830.0,108820.0,1.12919645]
[1756588453662,0.00047656,108830.0,108820.0,1.17070641]
[1756588453872,0.00047656,108830.0,108820.0,1.02190641]
[1756588454093,0.00047656,108830.0,108820.0,0.48344971]
[1756588454308,0.00047656,108830.0,108820.0,1.17470641]
[1756588455898,0.00047656,108830.0,108820.0,1.20233541]
[1756588460729,0.00047656,108830.0,108820.0,1.23951154]
[1756588461613,0.00047656,108830.0,108820.0,1.08671154]
[1756588461797,0.00047656,108830.0,108820.0,1.23947154]
[1756588463035,0.00047656,108830.0,108820.0,1.19796158]
[1756588463245,0.00047656,108830.0,108820.0,1.04520158]
[1756588463451,0.00047656,108830.0,108820.0,1.19796158]
[1756588467285,0.00047656,108830.0,108820.0,1.04520158]
[1756588467495,0.00047656,108830.0,108820.0,1.19796158]
[1756588468253,0.00047656,108830.0,108820.0,1.04520158]
[1756588468474,0.00047656,108830.0,108820.0,1.19796158]
[1756588468683,0.00047656,108830.0,108820.0,0.50670488]
[1756588468910,0.00047656,108830.0,108820.0,1.19796158]
[1756588469111,0.00047656,108830.0,108820.0,1.04520158]
[1756588469368,0.00047656,108830.0,108820.0,1.19796158]
[1756588470973,0.00047656,108830.0,108820.0,0.50666488]
[1756588471243,0.00047656,108830.0,108820.0,1.19792158]
[1756588474557,0.00047656,108830.0,108820.0,0.35394488]
[1756588474761,0.00047656,108830.0,108820.0,1.19792158]
[1756588476201,0.00047656,108830.0,108820.0,0.50666488]
[1756588476429,0.00047656,108830.0,108820.0,1.19792158]
[1756588477739,0.00047656,108830.0,108820.0,0.50666488]
[1756588477943,0.00047656,108830.0,108820.0,0.35394488]
[1756588478139,0.00047656,108830.0,108820.0,0.85277323]
[1756588478346,0.00047656,108830.0,108820.0,1.19840158]
[1756588478550,0.00047656,108830.0,108820.0,1.04520158]
[1756588478758,0.00047656,108830.0,108820.0,1.19840158]
[1756588481188,0.00047656,108830.0,108820.0,0.50714488]
[1756588481399,0.01767249,108830.0,108820.0,1.19840158]
[1756588483064,0.00047656,108830.0,108820.0,1.19840158]
[1756588483967,0.00047656,108830.0,108820.0,1.23926146]
[1756588487645,0.00047656,108830.0,108820.0,1.08606146]
[1756588487863,0.00047656,108830.0,108820.0,1.23954146]
[1756588489981,0.00047656,108830.0,108820.0,1.23966146]
[1756588492215,0.10053532,108860.0,108850.0,0.18373909]
[1756588492427,0.12424484,108860.0,108850.0,0.40797909]
[1756588492599,0.02370952,108860.0,108850.0,0.40797909]
[1756588492862,0.36933787,108860.0,108850.0,0.43560709]
[1756588498189,0.02370952,108860.0,108850.0,0.43310709]
[1756588498367,0.36933787,108860.0,108850.0,0.43310709]
[1756588500296,0.36933787,108860.0,108850.0,0.43314709]
[1756588501124,0.02370952,108860.0,108850.0,0.43310709]
[1756588501329,0.69775907,108860.0,108850.0,0.43310709]
[1756588501662,0.71497175,108860.0,108850.0,0.43310709]
[1756588501789,0.71497165,108860.0,108850.0,0.43310709]
[1756588504333,0.71497165,108860.0,108850.0,0.27954709]
[1756588504539,0.89869386,108860.0,108850.0,0.43576709]
[1756588504786,0.71497165,108860.0,108850.0,0.43576709]
[1756588505316,0.89869386,108860.0,108850.0,0.43576709]
[1756588505501,0.71497165,108860.0,108850.0,0.43576709]
[1756588505907,0.89869386,108860.0,108850.0,0.43576709]
[1756588506578,0.89869386,108860.0,108850.0,0.40813909]
[1756588507979,0.89869647,108860.0,108850.0,0.40813909]
[1756588508438,0.89869647,108860.0,108850.0,0.07068]
[1756588508643,1.61373473,108860.0,108850.0,0.22444]
[1756588508780,1.63356484,108860.0,108850.0,0.22444]
[1756588509196,1.61373473,108860.0,108850.0,0.22444]
[1756588509524,1.61373473,108860.0,108850.0,0.22464]
[1756588509933,0.57684968,108860.0,108850.0,0.22464]
[1756588510143,1.26810638,108860.0,108850.0,0.22464]
[1756588511477,1.24443645,108860.0,108850.0,0.22464]
[1756588511692,1.26809016,108860.0,108850.0,0.22464]
[1756588512097,1.26808675,108860.0,108850.0,0.22464]
[1756588514150,0.57683005,108860.0,108850.0,0.22464]
[1756588514354,1.26808675,108860.0,108850.0,0.22464]
[1756588514788,1.26808675,108860.0,108850.0,0.07068]
[1756588514990,1.26808675,108860.0,108850.0,0.22468]
[1756588515321,1.26807887,108860.0,108850.0,0.22468]
[1756588517617,1.26807887,108860.0,108850.0,0.07068]
[1756588517820,1.26807887,108860.0,108850.0,0.22476]
[1756588518589,1.26807652,108860.0,108850.0,0.22476]
[1756588519670,1.26807652,108860.0,108850.0,0.22789]
[1756588519890,1.26807652,108860.0,108850.0,0.23006]
[1756588520527,1.26807537,108860.0,108850.0,0.22789]
[1756588522253,1.26807446,108860.0,108850.0,0.22789]
[1756588522836,1.26807447,108860.0,108850.0,0.22789]
[1756588523268,1.26807447,108860.0,108850.0,0.22476]
[1756588523466,1.36807447,108860.0,108850.0,0.07068]
[1756588523662,1.36807447,108860.0,108850.0,0.22548]
[1756588525280,1.36807447,108860.0,108850.0,0.22861]
[1756588530138,1.36807447,108860.0,108850.0,0.22857]
[1756588531570,1.36807447,108860.0,108850.0,0.07381]
[1756588531773,1.36807447,108860.0,108850.0,0.2254]
[1756588532708,1.36808232,108860.0,108850.0,0.2254]
[1756588532998,1.36808232,108860.0,108850.0,0.22853]
[1756588533622,1.36808385,108860.0,108850.0,0.22853]
[1756588533801,1.36808385,108860.0,108850.0,0.15785]
[1756588533959,1.33867394,108860.0,108850.0,0.15781]
[1756588537729,1.33867394,108860.0,108850.0,0.15468]
[1756588537958,0.52373909,108850.0,108840.0,0.07381]
[1756588538156,0.89301484,108850.0,108840.0,0.22841]
[1756588538389,0.89301484,108850.0,108840.0,0.23058]
[1756588538790,0.89301484,108850.0,108840.0,0.41433597]
[1756588539352,0.89301484,108850.0,108840.0,0.41633597]
[1756588539702,0.89301484,108850.0,108840.0,0.26173597]
[1756588539910,3.7774631,108850.0,108840.0,0.22728]
[1756588540087,3.85616252,108850.0,108840.0,0.002]
[1756588540297,3.85616252,108850.0,108840.0,0.1576]
[1756588540777,3.85616252,108850.0,108840.0,0.1566]
[1756588541638,3.85616252,108850.0,108840.0,0.002]
[1756588541851,4.03170134,108850.0,108840.0,0.002]
[1756588542068,4.05646146,108850.0,108840.0,0.002]